fUSD/lending_fUSD_20240105
["ID","MTS","AMOUNT","RATE_DAILY","PERIOD"]
[310244669,1704414682331,-160.492194,0.00036503,2]
[310244670,1704414682341,-153.84,0.0003653,2]
[310244671,1704414682351,-150.0,0.00036554,2]
[310244672,1704414682361,-157.40105,0.00036598,2]
[310244673,1704414682370,-1000.0,0.00036648,10]
[310244674,1704414682379,-157.40105,0.00036698,2]
[310244675,1704414682390,-151.5350356,0.00036702,14]
[310244676,1704414682400,-500.0,0.00036712,2]
[310244677,1704414682409,-500.0,0.00036712,2]
[310244678,1704414682418,-437.35630526,0.00036712,2]
[310244679,1704414682427,-500.0,0.00036712,2]
[310244680,1704414682436,-500.0,0.00036712,2]
[310244681,1704414682444,-512.12,0.00036712,2]
[310244682,1704414682453,-500.0,0.00036712,2]
[310244683,1704414682462,-500.0,0.00036712,2]
[310244684,1704414682472,-544.31,0.00036712,2]
[310244685,1704414682481,-500.0,0.00036712,2]
[310244686,1704414682491,-1124.47,0.00036712,2]
[310244687,1704414682500,-500.0,0.00036712,2]
[310244688,1704414682509,-211.09,0.00036712,2]
[310244689,1704414682519,-500.0,0.00036712,2]
[310244690,1704414682528,-678.19,0.00036712,2]
[310244691,1704414682537,-500.0,0.00036712,2]
[310244692,1704414682547,-500.0,0.00036712,2]
[310244693,1704414682556,-424.9063067,0.00036712,2]
[310244694,1704414682566,-500.0,0.00036712,2]
[310244695,1704414682574,-500.0,0.00036712,2]
[310244696,1704414682583,-750.66,0.00036712,2]
[310244697,1704414682593,-500.0,0.00036712,2]
[310244698,1704414682602,-500.0,0.00036712,2]
[310244699,1704414682611,-500.0,0.00036712,2]
[310244700,1704414682620,-647.50875791,0.00036712,2]
[310244701,1704414682630,-888.28,0.00036712,2]
[310244702,1704414682640,-500.0,0.00036712,2]
[310244703,1704414682651,-330.17214976,0.00036712,2]
[310244704,1704414682661,-500.0,0.00036712,2]
[310244705,1704414682670,-723.54,0.00036712,2]
[310244706,1704414682679,-500.0,0.00036712,2]
[310244707,1704414682688,-574.43,0.00036712,2]
[310244708,1704414682697,-500.0,0.00036712,2]
[310244709,1704414682707,-608.52,0.00036712,2]
[310244710,1704414682716,-313.84,0.00036712,2]
[310244711,1704414682726,-333.35,0.00036712,2]
[310244712,1704414682736,-500.0,0.00036712,2]
[310244713,1704414682745,-500.0,0.00036712,2]
[310244714,1704414682754,-886.13,0.00036712,2]
[310244715,1704414682764,-501.68,0.00036712,2]
[310244716,1704414682777,-500.0,0.00036712,2]
[310244717,1704414682786,-500.0,0.00036712,2]
[310244718,1704414682796,-629.14210581,0.00036712,2]
[310244719,1704414682806,-500.0,0.00036712,2]
[310244720,1704414682815,-584.65,0.00036712,2]
[310244721,1704414682825,-1517.74,0.00036712,2]
[310244722,1704414682835,-939.87,0.00036712,2]
[310244723,1704414682845,-2022.65,0.00036712,2]
[310244724,1704414682855,-647.31,0.00036712,2]
[310244725,1704414682865,-919.18,0.00036712,2]
[310244726,1704414682874,-500.0,0.00036712,2]
[310244727,1704414682883,-808.57,0.00036712,2]
[310244728,1704414682893,-1527.38,0.00036712,2]
[310244729,1704414682901,-695.92,0.00036712,2]
[310244730,1704414682911,-970.8,0.00036712,2]
[310244731,1704414682920,-500.0,0.00036712,2]
[310244732,1704414682929,-500.0,0.00036712,2]
[310244733,1704414682939,-500.0,0.00036712,2]
[310244734,1704414682948,-893.29,0.00036712,2]
[310244735,1704414682957,-6653.01,0.00036712,2]
[310244736,1704414682966,-1177.25,0.00036712,2]
[310244737,1704414682976,-500.0,0.00036712,2]
[310244738,1704414682985,-1817.42,0.00036712,2]
[310244739,1704414682994,-1325.73,0.00036712,2]
[310244740,1704414683004,-638.74,0.00036712,2]
[310244741,1704414683013,-1358.51,0.00036712,2]
[310244742,1704414683023,-500.0,0.00036712,2]
[310244743,1704414683036,-1081.26,0.00036712,2]
[310244744,1704414683048,-556.12,0.00036712,2]
[310244745,1704414683058,-1314.11,0.00036712,2]
[310244746,1704414683070,-500.0,0.00036712,2]
[310244747,1704414683081,-4577.94,0.00036712,2]
[310244748,1704414683092,-21013.31,0.00036712,2]
[310244749,1704414683103,-500.0,0.00036712,2]
[310244750,1704414683113,-32339.89,0.00036712,2]
[310244751,1704414683123,-2096.26,0.00036712,2]
[310244752,1704414683133,-612.35,0.00036712,2]
[310244753,1704414683145,-509.98,0.00036712,2]
[310244754,1704414683156,-980.38,0.00036712,2]
[310244755,1704414683167,-970.25,0.00036712,2]
[310244756,1704414683178,-157.40105,0.00036798,2]
[310244757,1704414683190,-150.0,0.00036895,120]
[310244758,1704414683200,-157.40105,0.00036898,2]
[310244759,1704414683211,-1241.7436224,0.00036899,2]
[310244760,1704414683222,-68014.81504181,0.000369,5]
[310244761,1704414683231,-917.31,0.000369,7]
[310244762,1704414683241,-6026.05524857,0.000369,2]
[310244763,1704414683250,-13018.92,0.000369,7]
[310244764,1704414683260,-150.0,0.00036985,2]
[310244765,1704414683270,-500.0,0.00036986,2]
[310244766,1704414683279,-500.0,0.00036986,2]
[310244767,1704414683397,-500.0,0.00036986,2]
[310244768,1704414683407,-500.0,0.00036986,2]
[310244769,1704414683418,-512.12,0.00036986,2]
[310244770,1704414683429,-500.0,0.00036986,2]
[310244771,1704414683439,-500.0,0.00036986,2]
[310244772,1704414683449,-544.31,0.00036986,2]
[310244773,1704414683459,-500.0,0.00036986,2]
[310244774,1704414683468,-1124.47,0.00036986,2]
[310244775,1704414683478,-179.77,0.00036986,2]
[310244776,1704414683487,-500.0,0.00036986,2]
[310244777,1704414683496,-678.19,0.00036986,2]
[310244778,1704414683505,-500.0,0.00036986,2]
[310244779,1704414683514,-500.0,0.00036986,2]
[310244780,1704414683524,-500.0,0.00036986,2]
[310244781,1704414683533,-500.0,0.00036986,2]
[310244782,1704414683542,-750.66,0.00036986,2]
[310244783,1704414683551,-348.62,0.00036986,2]
[310244784,1704414683560,-500.0,0.00036986,2]
[310244785,1704414683570,-159.06436477,0.00036986,2]
[310244786,1704414683580,-888.28,0.00036986,2]
[310244787,1704414683591,-500.0,0.00036986,2]
[310244788,1704414683600,-576.07,0.00036986,2]
[310244789,1704414683610,-723.54,0.00036986,2]
[310244790,1704414683619,-500.0,0.00036986,2]
[310244791,1704414683629,-255.30527213,0.00036986,2]
[310244792,1704414683639,-608.52,0.00036986,2]
[310244793,1704414683649,-500.0,0.00036986,2]
[310244794,1704414683659,-649.34,0.00036986,2]
[310244795,1704414683668,-886.13,0.00036986,2]
[310244796,1704414683677,-501.68,0.00036986,2]
[310244797,1704414683687,-500.0,0.00036986,2]
[310244798,1704414683696,-260.46,0.00036986,2]
[310244799,1704414683705,-188.78,0.00036986,2]
[310244800,1704414683715,-584.65,0.00036986,2]
[310244801,1704414683724,-1517.74,0.00036986,2]
[310244802,1704414683733,-939.87,0.00036986,2]
[310244803,1704414683743,-2022.65,0.00036986,2]
[310244804,1704414683752,-647.31,0.00036986,2]
[310244805,1704414683762,-919.18,0.00036986,2]
[310244806,1704414683774,-1239.85,0.00036986,4]
[310244807,1704414683783,-1239.85,0.00036986,4]
[310244808,1704414683793,-1239.85,0.00036986,4]
[310244809,1704414683802,-1239.85,0.00036986,4]
[310244810,1704414683812,-1239.85,0.00036986,4]
[310244811,1704414683821,-1239.85,0.00036986,4]
[310244812,1704414683831,-1239.85,0.00036986,4]
[310244813,1704414683840,-1239.85,0.00036986,4]
[310244814,1704414683850,-1239.85,0.00036986,4]
[310244815,1704414683860,-1239.85,0.00036986,4]
[310244816,1704414683870,-1239.85,0.00036986,4]
[310244817,1704414683879,-1239.85,0.00036986,4]
[310244818,1704414683890,-500.0,0.00036986,2]
[310244819,1704414683903,-808.57,0.00036986,2]
[310244820,1704414683912,-1239.85,0.00036986,4]
[310244821,1704414683922,-1239.85,0.00036986,4]
[310244822,1704414683931,-1239.85,0.00036986,4]
[310244823,1704414683940,-1239.85,0.00036986,4]
[310244824,1704414683949,-1527.38,0.00036986,2]
[310244825,1704414683959,-695.92,0.00036986,2]
[310244826,1704414683969,-970.8,0.00036986,2]
[310244827,1704414683979,-500.0,0.00036986,2]
[310244828,1704414683989,-500.0,0.00036986,2]
[310244829,1704414683998,-511.6705971,0.00036986,2]
[310244830,1704414684008,-893.29,0.00036986,2]
[310244831,1704414684017,-6653.01,0.00036986,2]
[310244832,1704414684028,-1177.25,0.00036986,2]
[310244833,1704414684038,-500.0,0.00036986,2]
[310244834,1704414684047,-1817.42,0.00036986,2]
[310244835,1704414684057,-1325.73,0.00036986,2]
[310244836,1704414684067,-638.74,0.00036986,2]
[310244837,1704414684077,-1358.51,0.00036986,2]
[310244838,1704414684087,-500.0,0.00036986,2]
[310244839,1704414684097,-1081.26,0.00036986,2]
[310244840,1704414684107,-556.12,0.00036986,2]
[310244841,1704414684116,-1314.11,0.00036986,2]
[310244842,1704414684126,-500.0,0.00036986,2]
[310244843,1704414684134,-4577.94,0.00036986,2]
[310244844,1704414684147,-21013.31,0.00036986,2]
[310244845,1704414684156,-500.0,0.00036986,2]
[310244846,1704414684166,-32339.89,0.00036986,2]
[310244847,1704414684175,-2096.26,0.00036986,2]
[310244848,1704414684184,-612.35,0.00036986,2]
[310244849,1704414684193,-509.98,0.00036986,2]
[310244850,1704414684202,-980.38,0.00036986,2]
[310244851,1704414684212,-970.25,0.00036986,2]
[310244852,1704414684221,-155.0,0.00036987,2]
[310244853,1704414684230,-152.95511515,0.00036993,2]
[310244854,1704414684239,-157.40105,0.00036998,2]
[310244855,1704414684249,-308.92091342,0.00037,4]
[310244856,1704414684258,-216.0,0.00037,26]
[310244857,1704414684267,-500.0,0.00037,3]
[310244858,1704414684276,-160.492194,0.00037091,2]
[310244859,1704414684286,-159.257693,0.00037091,2]
[310244860,1704414684295,-157.40105,0.00037098,2]
[310244861,1704414684304,-977.7073741,0.00037111,2]
[310244862,1704414684314,-157.40105,0.00037198,2]
[310244863,1704414684323,-4625.45,0.000372,7]
[310244864,1704414684333,-927.56,0.00037211,2]
[310244865,1704414684343,-569.14550737,0.00037233,9]
[310244866,1704414684353,-569.14550734,0.00037233,9]
[310244867,1704414684362,-569.14550734,0.00037233,9]
[310244868,1704414684371,-569.14550734,0.00037233,9]
[310244869,1704414684381,-569.14550734,0.00037233,9]
[310244870,1704414684391,-21999.3822038,0.00037234,2]
[310244871,1704414684400,-809.29907843,0.0003724,4]
[310244872,1704414684409,-500.0,0.0003726,2]
[310244873,1704414684419,-500.0,0.0003726,2]
[310244874,1704414684428,-579.48752633,0.0003726,2]
[310244875,1704414684437,-500.0,0.0003726,2]
[310244876,1704414684446,-512.12,0.0003726,2]
[310244877,1704414684455,-500.0,0.0003726,2]
[310244878,1704414684465,-500.0,0.0003726,2]
[310244879,1704414684474,-544.31,0.0003726,2]
[310244880,1704414684484,-500.0,0.0003726,2]
[310244881,1704414684493,-1124.47,0.0003726,2]
[310244882,1704414684502,-500.0,0.0003726,2]
[310244883,1704414684512,-678.19,0.0003726,2]
[310244884,1704414684521,-500.0,0.0003726,2]
[310244885,1704414684530,-500.0,0.0003726,2]
[310244886,1704414684539,-500.0,0.0003726,2]
[310244887,1704414684548,-454.05448932,0.0003726,2]
[310244888,1704414684558,-750.66,0.0003726,2]
[310244889,1704414684567,-500.0,0.0003726,2]
[310244890,1704414684577,-888.28,0.0003726,2]
[310244891,1704414684586,-158.11424875,0.0003726,2]
[310244892,1704414684596,-723.54,0.0003726,2]
[310244893,1704414684606,-511.56511211,0.0003726,2]
[310244894,1704414684615,-608.52,0.0003726,2]
[310244895,1704414684625,-500.0,0.0003726,2]
[310244896,1704414684633,-886.13,0.0003726,2]
[310244897,1704414684643,-501.68,0.0003726,2]
[310244898,1704414684652,-381.6,0.0003726,2]
[310244899,1704414684662,-1517.74,0.0003726,2]
[310244900,1704414684671,-584.65,0.0003726,2]
[310244901,1704414684681,-939.87,0.0003726,2]
[310244902,1704414684690,-647.31,0.0003726,2]
[310244903,1704414684700,-2022.65,0.0003726,2]
[310244904,1704414684709,-919.18,0.0003726,2]
[310244905,1704414684719,-500.0,0.0003726,2]
[310244906,1704414684728,-808.57,0.0003726,2]
[310244907,1704414684738,-1239.85,0.0003726,4]
[310244908,1704414684748,-1527.38,0.0003726,2]
[310244909,1704414684757,-695.92,0.0003726,2]
[310244910,1704414684769,-385.11,0.0003726,2]
[310244911,1704414684779,-500.0,0.0003726,2]
[310244912,1704414684789,-970.8,0.0003726,2]
[310244913,1704414684798,-893.29,0.0003726,2]
[310244914,1704414684808,-6653.01,0.0003726,2]
[310244915,1704414684818,-1177.25,0.0003726,2]
[310244916,1704414684827,-500.0,0.0003726,2]
[310244917,1704414684836,-1817.42,0.0003726,2]
[310244918,1704414684846,-1325.73,0.0003726,2]
[310244919,1704414684855,-638.74,0.0003726,2]
[310244920,1704414684864,-1358.51,0.0003726,2]
[310244921,1704414684874,-500.0,0.0003726,2]
[310244922,1704414684882,-1081.26,0.0003726,2]
[310244923,1704414684893,-556.12,0.0003726,2]
[310244924,1704414684902,-1314.11,0.0003726,2]
[310244925,1704414684911,-461.74,0.0003726,2]
[310244926,1704414684921,-4577.94,0.0003726,2]
[310244927,1704414684930,-21013.31,0.0003726,2]
[310244928,1704414684940,-500.0,0.0003726,2]
[310244929,1704414684949,-32339.89,0.0003726,2]
[310244930,1704414684958,-2096.26,0.0003726,2]
[310244931,1704414684967,-612.35,0.0003726,2]
[310244932,1704414684977,-509.98,0.0003726,2]
[310244933,1704414684986,-980.38,0.0003726,2]
[310244934,1704414684995,-970.25,0.0003726,2]
[310244935,1704414685005,-154.0,0.00037281,2]
[310244936,1704414685014,-155.0,0.00037281,2]
[310244937,1704414685023,-157.40105,0.00037298,2]
[310244938,1704414685033,-300.0,0.00037362,2]
[310244939,1704414685042,-157.64913741,0.00037369,2]
[310244940,1704414685052,-155.05696804,0.00037376,14]
[310244941,1704414685062,-157.40105,0.00037398,2]
[310244942,1704414685071,-150.0,0.00037405,2]
[310244943,1704414685080,-150.0,0.00037405,2]
[310244944,1704414685090,-150.0,0.00037405,2]
[310244945,1704414685099,-153.84,0.00037443,2]
[310244946,1704414685109,-150.0,0.00037491,2]
[310244947,1704414685118,-157.40105,0.00037498,2]
[310244948,1704414685128,-917.31,0.000375,7]
[310244949,1704414685138,-13018.92,0.000375,7]
[310244950,1704414685148,-151.0,0.000375,7]
[310244951,1704414685157,-151.0,0.000375,7]
[310244952,1704414685167,-151.0,0.000375,7]
[310244953,1704414685177,-216.58934,0.000375,7]
[310244954,1704414685187,-216.58934,0.000375,7]
[310244955,1704414685196,-495.900744,0.000375,7]
[310244956,1704414685206,-495.900744,0.000375,7]
[310244957,1704414685216,-348.55550218,0.00037534,2]
[310244958,1704414685225,-500.0,0.00037534,2]
[310244959,1704414685234,-500.0,0.00037534,2]
[310244960,1704414685244,-512.12,0.00037534,2]
[310244961,1704414685253,-257.2,0.00037534,2]
[310244962,1704414685263,-391.63617378,0.00037534,2]
[310244963,1704414685272,-544.31,0.00037534,2]
[310244964,1704414685384,-500.0,0.00037534,2]
[310244965,1704414685397,-1124.47,0.00037534,2]
[310244966,1704414685406,-500.0,0.00037534,2]
[310244967,1704414685416,-678.19,0.00037534,2]
[310244968,1704414685425,-500.0,0.00037534,2]
[310244969,1704414685435,-620.97765816,0.00037534,2]
[310244970,1704414685444,-500.0,0.00037534,2]
[310244971,1704414685454,-750.66,0.00037534,2]
[310244972,1704414685463,-500.0,0.00037534,2]
[310244973,1704414685473,-888.28,0.00037534,2]
[310244974,1704414685483,-723.54,0.00037534,2]
[310244975,1704414685493,-608.52,0.00037534,2]
[310244976,1704414685502,-500.0,0.00037534,2]
[310244977,1704414685511,-886.13,0.00037534,2]
[310244978,1704414685521,-501.68,0.00037534,2]
[310244979,1704414685531,-1517.74,0.00037534,2]
[310244980,1704414685541,-584.65,0.00037534,2]
[310244981,1704414685551,-939.87,0.00037534,2]
[310244982,1704414685561,-647.31,0.00037534,2]
[310244983,1704414685571,-2022.65,0.00037534,2]
[310244984,1704414685581,-919.18,0.00037534,2]
[310244985,1704414685591,-500.0,0.00037534,2]
[310244986,1704414685601,-808.57,0.00037534,2]
[310244987,1704414685610,-1239.85,0.00037534,4]
[310244988,1704414685621,-695.92,0.00037534,2]
[310244989,1704414685631,-1527.38,0.00037534,2]
[310244990,1704414685642,-500.0,0.00037534,2]
[310244991,1704414685654,-970.8,0.00037534,2]
[310244992,1704414685665,-893.29,0.00037534,2]
[310244993,1704414685675,-6653.01,0.00037534,2]
[310244994,1704414685686,-1177.25,0.00037534,2]
[310244995,1704414685696,-500.0,0.00037534,2]
[310244996,1704414685706,-1817.42,0.00037534,2]
[310244997,1704414685716,-1325.73,0.00037534,2]
[310244998,1704414685726,-638.74,0.00037534,2]
[310244999,1704414685735,-1358.51,0.00037534,2]
[310245000,1704414685745,-500.0,0.00037534,2]
[310245001,1704414685755,-1081.26,0.00037534,2]
[310245002,1704414685765,-556.12,0.00037534,2]
[310245003,1704414685778,-1314.11,0.00037534,2]
[310245004,1704414685788,-4577.94,0.00037534,2]
[310245005,1704414685797,-21013.31,0.00037534,2]
[310245006,1704414685807,-375.93,0.00037534,2]
[310245007,1704414685817,-32339.89,0.00037534,2]
[310245008,1704414685827,-2096.26,0.00037534,2]
[310245009,1704414685836,-612.35,0.00037534,2]
[310245010,1704414685845,-509.98,0.00037534,2]
[310245011,1704414685856,-980.38,0.00037534,2]
[310245012,1704414685865,-970.25,0.00037534,2]
[310245013,1704414685876,-157.40105,0.00037598,2]
[310245014,1704414685885,-157.40105,0.00037698,2]
[310245015,1704414685897,-152.0,0.00037698,5]
[310245016,1704414685906,-157.40105,0.00037798,2]
[310245017,1704414685915,-500.0,0.00037808,2]
[310245018,1704414685925,-500.0,0.00037808,2]
[310245019,1704414685934,-512.12,0.00037808,2]
[310245020,1704414685944,-544.31,0.00037808,2]
[310245021,1704414685953,-500.0,0.00037808,2]
[310245022,1704414685962,-1124.47,0.00037808,2]
[310245023,1704414685972,-626.18,0.00037808,2]
[310245024,1704414685982,-678.19,0.00037808,2]
[310245025,1704414685991,-500.0,0.00037808,2]
[310245026,1704414686001,-500.0,0.00037808,2]
[310245027,1704414686010,-750.66,0.00037808,2]
[310245028,1704414686020,-245.66038016,0.00037808,2]
[310245029,1704414686029,-888.28,0.00037808,2]
[310245030,1704414686039,-723.54,0.00037808,2]
[310245031,1704414686049,-608.52,0.00037808,2]
[310245032,1704414686059,-500.0,0.00037808,2]
[310245033,1704414686070,-886.13,0.00037808,2]
[310245034,1704414686079,-501.68,0.00037808,2]
[310245035,1704414686088,-1517.74,0.00037808,2]
[310245036,1704414686098,-584.65,0.00037808,2]
[310245037,1704414686107,-939.87,0.00037808,2]
[310245038,1704414686117,-647.31,0.00037808,2]
[310245039,1704414686127,-2022.65,0.00037808,2]
[310245040,1704414686136,-919.18,0.00037808,2]
[310245041,1704414686149,-500.0,0.00037808,2]
[310245042,1704414686158,-808.57,0.00037808,2]
[310245043,1704414686168,-1239.85,0.00037808,4]
[310245044,1704414686177,-695.92,0.00037808,2]
[310245045,1704414686186,-1527.38,0.00037808,2]
[310245046,1704414686195,-333.11,0.00037808,2]
[310245047,1704414686205,-970.8,0.00037808,2]
[310245048,1704414686214,-893.29,0.00037808,2]
[310245049,1704414686223,-6653.01,0.00037808,2]
[310245050,1704414686233,-1177.25,0.00037808,2]
[310245051,1704414686243,-500.0,0.00037808,2]
[310245052,1704414686252,-1817.42,0.00037808,2]
[310245053,1704414686262,-1325.73,0.00037808,2]
[310245054,1704414686271,-638.74,0.00037808,2]
[310245055,1704414686281,-1358.51,0.00037808,2]
[310245056,1704414686290,-398.16,0.00037808,2]
[310245057,1704414686306,-1081.26,0.00037808,2]
[310245058,1704414686327,-556.12,0.00037808,2]
[310245059,1704414686342,-1314.11,0.00037808,2]
[310245060,1704414686361,-4577.94,0.00037808,2]
[310245061,1704414686379,-21013.31,0.00037808,2]
[310245062,1704414686395,-32339.89,0.00037808,2]
[310245063,1704414686412,-2096.26,0.00037808,2]
[310245064,1704414686429,-612.35,0.00037808,2]
[310245065,1704414686443,-509.98,0.00037808,2]
[310245066,1704414686460,-980.38,0.00037808,2]
[310245067,1704414686478,-970.25,0.00037808,2]
[310245068,1704414686494,-1606.2127601,0.00037874,2]
[310245069,1704414686512,-300.0,0.00037878,2]
[310245070,1704414686530,-152.40859416,0.00037897,2]
[310245071,1704414686543,-157.40105,0.00037898,2]
[310245072,1704414686558,-151.0,0.000379,7]
[310245073,1704414686574,-151.0,0.000379,7]
[310245074,1704414686587,-158.100038,0.000379,7]
[310245075,1704414686601,-181.995707,0.000379,7]
[310245076,1704414686615,-151.0,0.000379,7]
[310245077,1704414686628,-151.0,0.000379,7]
[310245078,1704414686643,-151.0,0.000379,7]
[310245079,1704414686658,-298.139572,0.000379,7]
[310245080,1704414686671,-151.0,0.000379,7]
[310245081,1704414686686,-151.0,0.000379,7]
[310245082,1704414686700,-212.581512,0.000379,7]
[310245083,1704414686713,-212.581512,0.000379,7]
[310245084,1704414686727,-151.0,0.000379,7]
[310245085,1704414686741,-520.818755,0.000379,7]
[310245086,1704414686755,-520.818755,0.000379,7]
[310245087,1704414686771,-151.0,0.000379,7]
[310245088,1704414686785,-1444.827588,0.000379,7]
[310245089,1704414686799,-1444.827588,0.000379,7]
[310245090,1704414686812,-151.0,0.000379,7]
[310245091,1704414686826,-151.0,0.000379,7]
[310245092,1704414686839,-674220.87031,0.000379,3]
[310245093,1704414686853,-151.0,0.000379,7]
[310245094,1704414686867,-151.0,0.000379,7]
[310245095,1704414686881,-151.0,0.000379,7]
[310245096,1704414686895,-151.0,0.000379,7]
[310245097,1704414686908,-1000.0,0.00037989,10]
[310245098,1704414686922,-1000.0,0.00037989,10]
[310245099,1704414686935,-1000.0,0.00037989,10]
[310245100,1704414686949,-1000.0,0.00037989,10]
[310245101,1704414686963,-157.40105,0.00037998,2]
[310245102,1704414686976,-28166.77276403,0.00038,2]
[310245103,1704414686989,-4625.45,0.00038,7]
[310245104,1704414687002,-155.74048491,0.00038,4]
[310245105,1704414687016,-151.0,0.00038,7]
[310245106,1704414687029,-157.0,0.00038,2]
[310245107,1704414687043,-394.64432969,0.00038011,2]
[310245108,1704414687056,-157.75,0.00038014,15]
[310245109,1704414687070,-792.0,0.00038077,20]
[310245110,1704414687084,-500.0,0.00038082,2]
[310245111,1704414687098,-500.87545046,0.00038082,2]
[310245112,1704414687110,-512.12,0.00038082,2]
[310245113,1704414687124,-544.31,0.00038082,2]
[310245114,1704414687137,-500.0,0.00038082,2]
[310245115,1704414687151,-1124.47,0.00038082,2]
[310245116,1704414687164,-678.19,0.00038082,2]
[310245117,1704414687177,-500.0,0.00038082,2]
[310245118,1704414687190,-500.0,0.00038082,2]
[310245119,1704414687204,-750.66,0.00038082,2]
[310245120,1704414687218,-888.28,0.00038082,2]
[310245121,1704414687232,-723.54,0.00038082,2]
[310245122,1704414687245,-608.52,0.00038082,2]
[310245123,1704414687259,-500.0,0.00038082,2]
[310245124,1704414687272,-886.13,0.00038082,2]
[310245125,1704414687286,-501.68,0.00038082,2]
[310245126,1704414687301,-1517.74,0.00038082,2]
[310245127,1704414687316,-584.65,0.00038082,2]
[310245128,1704414687330,-939.87,0.00038082,2]
[310245129,1704414687344,-647.31,0.00038082,2]
[310245130,1704414687357,-2022.65,0.00038082,2]
[310245131,1704414687371,-919.18,0.00038082,2]
[310245132,1704414687385,-808.57,0.00038082,2]
[310245133,1704414687401,-482.24,0.00038082,2]
[310245134,1704414687415,-1239.85,0.00038082,4]
[310245135,1704414687428,-695.92,0.00038082,2]
[310245136,1704414687442,-1527.38,0.00038082,2]
[310245137,1704414687456,-970.8,0.00038082,2]
[310245138,1704414687470,-893.29,0.00038082,2]
[310245139,1704414687484,-6653.01,0.00038082,2]
[310245140,1704414687498,-1177.25,0.00038082,2]
[310245141,1704414687511,-382.29,0.00038082,2]
[310245142,1704414687526,-1817.42,0.00038082,2]
[310245143,1704414687539,-1325.73,0.00038082,2]
[310245144,1704414687553,-638.74,0.00038082,2]
[310245145,1704414687565,-1358.51,0.00038082,2]
[310245146,1704414687734,-1081.26,0.00038082,2]
[310245147,1704414687744,-556.12,0.00038082,2]
[310245148,1704414687754,-1314.11,0.00038082,2]
[310245149,1704414687764,-4577.94,0.00038082,2]
[310245150,1704414687778,-21013.31,0.00038082,2]
[310245151,1704414687788,-32339.89,0.00038082,2]
[310245152,1704414687797,-2096.26,0.00038082,2]
[310245153,1704414687807,-612.35,0.00038082,2]
[310245154,1704414687816,-509.98,0.00038082,2]
[310245155,1704414687825,-980.38,0.00038082,2]
[310245156,1704414687834,-970.25,0.00038082,2]
[310245157,1704414687843,-157.40105,0.00038098,2]
[310245158,1704414687853,-208.0,0.00038187,4]
[310245159,1704414687863,-157.40105,0.00038198,2]
[310245160,1704414687873,-13018.92,0.000382,7]
[310245161,1704414687882,-602.1095473,0.00038207,2]
[310245162,1704414687893,-19574.7772258,0.00038209,2]
[310245163,1704414687903,-151.0,0.00038233,7]
[310245164,1704414687912,-253.242574,0.00038233,7]
[310245165,1704414687921,-1175.413069,0.00038233,7]
[310245166,1704414687931,-1175.413069,0.00038233,7]
[310245167,1704414687940,-151.0,0.00038233,7]
[310245168,1704414687950,-151.0,0.00038233,7]